{"text_format":"1","workbook":"xlsx","n_sheets":1,"sheets":["Jan_21"],"not_rendered":{"charts":0,"images":0,"macros":1,"external_links":0,"defined_names":5,"comments":1,"pivot_tables":0},"unopened":[],"bounds":{"document_bytes":16777216,"sheet_cells":100000,"rows_first":2000,"rows_last":500,"rows_between":2000,"halvings":0,"cell_chars":16384,"cell_head_chars":4096},"cells_cut":0,"cells_raw":0,"read":"whole","date_system":"1900"}

{"sheet":"Jan_21","index":0,"n_rows":33,"n_cols":306,"rows_kept":33,"cut":false,"hidden":false,"merged":[[6,2,7,2],[4,2,5,2]]}
[1,2,3,4,5,6,7,8,9,10,11,12,13,14,15,16,17,18,19,20,21,22,23,24,25,26,27,28,29,30,31,32,33,34,35,36,37,38,39,40,41,42,43,44,45,46,47,48,49,50,51,52,53,54,55,56,57,58,59,60,61,62,63,64,65,66,67,68,69,70,71,72,73,74,75,76,77,78,79,80,81,82,83,84,85,86,87,88,89,90,91,92,93,94,95,96,97,98,99,100,101,102,103,104,105,106,107,108,109,110,111,112,113,114,115,116,117,118,119,120,121,122,123,124,125,126,127,128,129,130,131,132,133,134,135,136,137,138,139,140,141,142,143,144,145,146,147,148,149,150,151,152,153,154,155,156,157,158,159,160,161,162,163,164,165,166,167,168,169,170,171,172,173,174,175,176,177,178,179,180,181,182,183,184,185,186,187,188,189,190,191,192,193,194,195,196,197,198,199,200,201,202,203,204,205,206,207,208,209,210,211,212,213,214,215,216,217,218,219,220,221,222,223,224,225,226,227,228,229,230,231,232,233,234,235,236,237,238,239,240,241,242,243,244,245,246,247,248,249,250,251,252,253,254,255,256,257,258,259,260,261,262,263,264,265,266,267,268,269,270,271,272,273,274,275,276,277,278,279,280,281,282,283,284,285,286,287,288,289,290,291,292,293,294,295,296,297,298,299,300,301,302,303,304,305,306]
[null,null,null,null,null,null,{"$f":"SUM(G14:G34)","v":0},{"$f":"SUM(H14:H34)","v":0},null,null,null,null,null,null,null,{"$f":"SUM(P14:P34)","v":0},{"$f":"SUM(Q14:Q34)","v":0},null,null,null,null,null,null,null,{"$f":"SUM(Y14:Y34)","v":0},{"$f":"SUM(Z14:Z34)","v":0},null,null,null,null,null,null,null,{"$f":"SUM(AH14:AH34)","v":0},{"$f":"SUM(AI14:AI34)","v":0},null,null,null,null,null,null,null,{"$f":"SUM(AQ14:AQ34)","v":0},{"$f":"SUM(AR14:AR34)","v":0},null,null,null,null,null,null,null,{"$f":"SUM(AZ14:AZ34)","v":0},{"$f":"SUM(BA14:BA34)","v":0},null,null,null,null,null,null,null,{"$f":"SUM(BI14:BI34)","v":0},{"$f":"SUM(BJ14:BJ34)","v":0},null,null,null,null,null,null,null,{"$f":"SUM(BR14:BR34)","v":0},{"$f":"SUM(BS14:BS34)","v":0},null,null,null,null,null,null,null,{"$f":"SUM(CA14:CA34)","v":0},{"$f":"SUM(CB14:CB34)","v":0},null,null,null,null,null,null,null,{"$f":"SUM(CJ14:CJ34)","v":0},{"$f":"SUM(CK14:CK34)","v":0},null,null,null,null,null,null,null,{"$f":"SUM(CS14:CS34)","v":0},{"$f":"SUM(CT14:CT34)","v":0},null,null,null,null,null,null,null,{"$f":"SUM(DB14:DB34)","v":0},{"$f":"SUM(DC14:DC34)","v":0},null,null,null,null,null,null,null,{"$f":"SUM(DK14:DK34)","v":0},{"$f":"SUM(DL14:DL34)","v":0},null,null,null,null,null,null,null,{"$f":"SUM(DT14:DT34)","v":0},{"$f":"SUM(DU14:DU34)","v":0},null,null,null,null,null,null,null,{"$f":"SUM(EC14:EC34)","v":0},{"$f":"SUM(ED14:ED34)","v":0},null,null,null,null,null,null,null,{"$f":"SUM(EL14:EL34)","v":0},{"$f":"SUM(EM14:EM34)","v":0},null,null,null,null,null,null,null,{"$f":"SUM(EU14:EU34)","v":0},{"$f":"SUM(EV14:EV34)","v":0},null,null,null,null,null,null,null,{"$f":"SUM(FD14:FD34)","v":0},{"$f":"SUM(FE14:FE34)","v":0},null,null,null,null,null,null,null,{"$f":"SUM(FM14:FM34)","v":0},{"$f":"SUM(FN14:FN34)","v":0},null,null,null,null,null,null,null,{"$f":"SUM(FV14:FV34)","v":0},{"$f":"SUM(FW14:FW34)","v":0},null,null,null,null,null,null,null,{"$f":"SUM(GE14:GE34)","v":0},{"$f":"SUM(GF14:GF34)","v":0},null,null,null,null,null,null,null,{"$f":"SUM(GN14:GN34)","v":0},{"$f":"SUM(GO14:GO34)","v":0},null,null,null,null,null,null,null,{"$f":"SUM(GW14:GW34)","v":0},{"$f":"SUM(GX14:GX34)","v":0},null,null,null,null,null,null,null,{"$f":"SUM(HF14:HF34)","v":0},{"$f":"SUM(HG14:HG34)","v":0},null,null,null,null,null,null,null,{"$f":"SUM(HO14:HO34)","v":0},{"$f":"SUM(HP14:HP34)","v":0},null,null,null,null,null,null,null,{"$f":"SUM(HX14:HX34)","v":0},{"$f":"SUM(HY14:HY34)","v":0},null,null,null,null,null,null,null,{"$f":"SUM(IG14:IG34)","v":0},{"$f":"SUM(IH14:IH34)","v":0},null,null,null,null,null,null,null,{"$f":"SUM(IP14:IP34)","v":0},{"$f":"SUM(IQ14:IQ34)","v":0},null,null,null,null,null,null,null,{"$f":"SUM(IY14:IY34)","v":0},{"$f":"SUM(IZ14:IZ34)","v":0},null,null,null,null,null,null,null,{"$f":"SUM(JH14:JH34)","v":0},{"$f":"SUM(JI14:JI34)","v":0},null,null,null,null,null,null,null,{"$f":"SUM(JQ14:JQ34)","v":145},{"$f":"SUM(JR14:JR34)","v":0}]
[null,null,null,null,{"$f":"P3","v":"2021-01-02"},null,"2021-01-01",null,null,null,null,null,null,null,null,{"$f":"G3+1","v":"2021-01-02"},null,null,null,null,null,null,null,null,{"$f":"P3+1","v":"2021-01-03"},null,null,null,null,null,null,null,null,{"$f":"Y3+1","v":"2021-01-04"},null,null,null,null,null,null,null,null,{"$f":"AH3+1","v":"2021-01-05"},null,null,null,null,null,null,null,null,{"$f":"AQ3+1","v":"2021-01-06"},null,null,null,null,null,null,null,null,{"$f":"AZ3+1","v":"2021-01-07"},null,null,null,null,null,null,null,null,{"$f":"BI3+1","v":"2021-01-08"},null,null,null,null,null,null,null,null,{"$f":"BR3+1","v":"2021-01-09"},null,null,null,null,null,null,null,null,{"$f":"CA3+1","v":"2021-01-10"},null,null,null,null,null,null,null,null,{"$f":"CJ3+1","v":"2021-01-11"},null,null,null,null,null,null,null,null,{"$f":"CS3+1","v":"2021-01-12"},null,null,null,null,null,null,null,null,{"$f":"DB3+1","v":"2021-01-13"},null,null,null,null,null,null,null,null,{"$f":"DK3+1","v":"2021-01-14"},null,null,null,null,null,null,null,null,{"$f":"DT3+1","v":"2021-01-15"},null,null,null,null,null,null,null,null,{"$f":"EC3+1","v":"2021-01-16"},null,null,null,null,null,null,null,null,{"$f":"EL3+1","v":"2021-01-17"},null,null,null,null,null,null,null,null,{"$f":"EU3+1","v":"2021-01-18"},null,null,null,null,null,null,null,null,{"$f":"FD3+1","v":"2021-01-19"},null,null,null,null,null,null,null,null,{"$f":"FM3+1","v":"2021-01-20"},null,null,null,null,null,null,null,null,{"$f":"FV3+1","v":"2021-01-21"},null,null,null,null,null,null,null,null,{"$f":"GE3+1","v":"2021-01-22"},null,null,null,null,null,null,null,null,{"$f":"GN3+1","v":"2021-01-23"},null,null,null,null,null,null,null,null,{"$f":"GW3+1","v":"2021-01-24"},null,null,null,null,null,null,null,null,{"$f":"HF3+1","v":"2021-01-25"},null,null,null,null,null,null,null,null,{"$f":"HO3+1","v":"2021-01-26"},null,null,null,null,null,null,null,null,{"$f":"HX3+1","v":"2021-01-27"},null,null,null,null,null,null,null,null,{"$f":"IG3+1","v":"2021-01-28"},null,null,null,null,null,null,null,null,{"$f":"IP3+1","v":"2021-01-29"},null,null,null,null,null,null,null,null,{"$f":"IY3+1","v":"2021-01-30"},null,null,null,null,null,null,null,null,{"$f":"JH3+1","v":"2021-01-31"}]
[null,null,null,null,null,null,{"$f":"P3-1","v":"2021-01-01"},null,null,null,null,null,null,null,null,{"$f":"P3","v":"2021-01-02"},null,null,null,null,null,null,null,null,{"$f":"Y3","v":"2021-01-03"},null,null,null,null,null,null,null,null,{"$f":"AH3","v":"2021-01-04"},null,null,null,null,null,null,null,null,{"$f":"AQ3","v":"2021-01-05"},null,null,null,null,null,null,null,null,{"$f":"AZ3","v":"2021-01-06"},null,null,null,null,null,null,null,null,{"$f":"BI3","v":"2021-01-07"},null,null,null,null,null,null,null,null,{"$f":"BR3","v":"2021-01-08"},null,null,null,null,null,null,null,null,{"$f":"CA3","v":"2021-01-09"},null,null,null,null,null,null,null,null,{"$f":"CJ3","v":"2021-01-10"},null,null,null,null,null,null,null,null,{"$f":"CS3","v":"2021-01-11"},null,null,null,null,null,null,null,null,{"$f":"DB3","v":"2021-01-12"},null,null,null,null,null,null,null,null,{"$f":"DK3","v":"2021-01-13"},null,null,null,null,null,null,null,null,{"$f":"DT3","v":"2021-01-14"},null,null,null,null,null,null,null,null,{"$f":"EC3","v":"2021-01-15"},null,null,null,null,null,null,null,null,{"$f":"EL3","v":"2021-01-16"},null,null,null,null,null,null,null,null,{"$f":"EU3","v":"2021-01-17"},null,null,null,null,null,null,null,null,{"$f":"FD3","v":"2021-01-18"},null,null,null,null,null,null,null,null,{"$f":"FM3","v":"2021-01-19"},null,null,null,null,null,null,null,null,{"$f":"FV3","v":"2021-01-20"},null,null,null,null,null,null,null,null,{"$f":"GE3","v":"2021-01-21"},null,null,null,null,null,null,null,null,{"$f":"GN3","v":"2021-01-22"},null,null,null,null,null,null,null,null,{"$f":"GW3","v":"2021-01-23"},null,null,null,null,null,null,null,null,{"$f":"HF3","v":"2021-01-24"},null,null,null,null,null,null,null,null,{"$f":"HO3","v":"2021-01-25"},null,null,null,null,null,null,null,null,{"$f":"HX3","v":"2021-01-26"},null,null,null,null,null,null,null,null,{"$f":"IG3","v":"2021-01-27"},null,null,null,null,null,null,null,null,{"$f":"IP3","v":"2021-01-28"},null,null,null,null,null,null,null,null,{"$f":"IY3","v":"2021-01-29"},null,null,null,null,null,null,null,null,{"$f":"JH3","v":"2021-01-30"},null,null,null,null,null,null,null,null,{"$f":"JQ3","v":"2021-01-31"}]
[null,null,"Monthly Gross Results","Monthly gross Profit ",{"$f":"E6-E9","v":0},"Daily Gross Profit",0,null,null,null,null,null,null,null,null,0,null,null,null,null,null,null,null,null,0,null,null,null,null,null,null,null,null,0,null,null,null,null,null,null,null,null,0,null,null,null,null,null,null,null,null,0,null,null,null,null,null,null,null,null,0,null,null,null,null,null,null,null,null,0,null,null,null,null,null,null,null,null,0,null,null,null,null,null,null,null,null,0,null,null,null,null,null,null,null,null,0,null,null,null,null,null,null,null,null,0,null,null,null,null,null,null,null,null,0,null,null,null,null,null,null,null,null,0,null,null,null,null,null,null,null,null,0,null,null,null,null,null,null,null,null,0,null,null,null,null,null,null,null,null,0,null,null,null,null,null,null,null,null,0,null,null,null,null,null,null,null,null,0,null,null,null,null,null,null,null,null,0,null,null,null,null,null,null,null,null,0,null,null,null,null,null,null,null,null,0,null,null,null,null,null,null,null,null,0,null,null,null,null,null,null,null,null,0,null,null,null,null,null,null,null,null,0,null,null,null,null,null,null,null,null,0,null,null,null,null,null,null,null,null,0,null,null,null,null,null,null,null,null,0,null,null,null,null,null,null,null,null,0,null,null,null,null,null,null,null,null,0,null,null,null,null,null,null,null,null,0]
[null,null,null,"Monthly gross Sales ",{"$f":"SUM(G8:JQ8)+C11","v":0},"Daily Gross Sales",0,null,null,null,null,null,null,null,null,0,null,null,null,null,null,null,null,null,0,null,null,null,null,null,null,null,null,0,null,null,null,null,null,null,null,null,0,null,null,null,null,null,null,null,null,0,null,null,null,null,null,null,null,null,0,null,null,null,null,null,null,null,null,0,null,null,null,null,null,null,null,null,0,null,null,null,null,null,null,null,null,0,null,null,null,null,null,null,null,null,0,null,null,null,null,null,null,null,null,0,null,null,null,null,null,null,null,null,0,null,null,null,null,null,null,null,null,0,null,null,null,null,null,null,null,null,0,null,null,null,null,null,null,null,null,0,null,null,null,null,null,null,null,null,0,null,null,null,null,null,null,null,null,0,null,null,null,null,null,null,null,null,0,null,null,null,null,null,null,null,null,0,null,null,null,null,null,null,null,null,0,null,null,null,null,null,null,null,null,0,null,null,null,null,null,null,null,null,0,null,null,null,null,null,null,null,null,0,null,null,null,null,null,null,null,null,0,null,null,null,null,null,null,null,null,0,null,null,null,null,null,null,null,null,0,null,null,null,null,null,null,null,null,0,null,null,null,null,null,null,null,null,0,null,null,null,null,null,null,null,null,0,null,null,null,null,null,null,null,null,0]
[null,null,"Monthly Nets Results","Monthly Net Profit ",{"$f":"E8-E9","v":0},"Daily net Profit ",0,null,null,null,null,null,null,null,null,0,null,null,null,null,null,null,null,null,0,null,null,null,null,null,null,null,null,0,null,null,null,null,null,null,null,null,0,null,null,null,null,null,null,null,null,0,null,null,null,null,null,null,null,null,0,null,null,null,null,null,null,null,null,0,null,null,null,null,null,null,null,null,0,null,null,null,null,null,null,null,null,0,null,null,null,null,null,null,null,null,0,null,null,null,null,null,null,null,null,0,null,null,null,null,null,null,null,null,0,null,null,null,null,null,null,null,null,0,null,null,null,null,null,null,null,null,0,null,null,null,null,null,null,null,null,0,null,null,null,null,null,null,null,null,0,null,null,null,null,null,null,null,null,0,null,null,null,null,null,null,null,null,0,null,null,null,null,null,null,null,null,0,null,null,null,null,null,null,null,null,0,null,null,null,null,null,null,null,null,0,null,null,null,null,null,null,null,null,0,null,null,null,null,null,null,null,null,0,null,null,null,null,null,null,null,null,0,null,null,null,null,null,null,null,null,0,null,null,null,null,null,null,null,null,0,null,null,null,null,null,null,null,null,0,null,null,null,null,null,null,null,null,0,null,null,null,null,null,null,null,null,0,null,null,null,null,null,null,null,null,0]
[null,null,null,"Monthly Net Sales ",{"$f":"SUM(G8:JQ8)","v":0},"Daily Net Sales",0,null,null,null,null,null,null,null,null,0,null,null,null,null,null,null,null,null,0,null,null,null,null,null,null,null,null,0,null,null,null,null,null,null,null,null,0,null,null,null,null,null,null,null,null,0,null,null,null,null,null,null,null,null,0,null,null,null,null,null,null,null,null,0,null,null,null,null,null,null,null,null,0,null,null,null,null,null,null,null,null,0,null,null,null,null,null,null,null,null,0,null,null,null,null,null,null,null,null,0,null,null,null,null,null,null,null,null,0,null,null,null,null,null,null,null,null,0,null,null,null,null,null,null,null,null,0,null,null,null,null,null,null,null,null,0,null,null,null,null,null,null,null,null,0,null,null,null,null,null,null,null,null,0,null,null,null,null,null,null,null,null,0,null,null,null,null,null,null,null,null,0,null,null,null,null,null,null,null,null,0,null,null,null,null,null,null,null,null,0,null,null,null,null,null,null,null,null,0,null,null,null,null,null,null,null,null,0,null,null,null,null,null,null,null,null,0,null,null,null,null,null,null,null,null,0,null,null,null,null,null,null,null,null,0,null,null,null,null,null,null,null,null,0,null,null,null,null,null,null,null,null,0,null,null,null,null,null,null,null,null,0,null,null,null,null,null,null,null,null,0]
["Monthly Qty product Broken/ stolen/gifted",{"$f":"H11+Q11+Z11+AI11+AR11+BA11+BJ11+BS11+CB11+CK11+CT11+DC11+DL11+DU11+ED11+EM11+EV11+FE11+FN11+FW11+GF11+GO11+GX11+HG11+HP11+HY11+IH11+IQ11+IZ11+JI11+JR11","v":0},null,"Monthly Cost Price ",{"$f":"SUM(G9:JQ9)","v":0},"Daily Cost Price",0,null,null,null,null,null,null,null,null,0,null,null,null,null,null,null,null,null,0,null,null,null,null,null,null,null,null,0,null,null,null,null,null,null,null,null,0,null,null,null,null,null,null,null,null,0,null,null,null,null,null,null,null,null,0,null,null,null,null,null,null,null,null,0,null,null,null,null,null,null,null,null,0,null,null,null,null,null,null,null,null,0,null,null,null,null,null,null,null,null,0,null,null,null,null,null,null,null,null,0,null,null,null,null,null,null,null,null,0,null,null,null,null,null,null,null,null,0,null,null,null,null,null,null,null,null,0,null,null,null,null,null,null,null,null,0,null,null,null,null,null,null,null,null,0,null,null,null,null,null,null,null,null,0,null,null,null,null,null,null,null,null,0,null,null,null,null,null,null,null,null,0,null,null,null,null,null,null,null,null,0,null,null,null,null,null,null,null,null,0,null,null,null,null,null,null,null,null,0,null,null,null,null,null,null,null,null,0,null,null,null,null,null,null,null,null,0,null,null,null,null,null,null,null,null,0,null,null,null,null,null,null,null,null,0,null,null,null,null,null,null,null,null,0,null,null,null,null,null,null,null,null,0,null,null,null,null,null,null,null,null,0,null,null,null,null,null,null,null,null,0]
["TVA Rate (%)",0,"Monthly Total Expenses:",0,{"$f":"G11+P11+Y11+AH11+AQ11+AZ11+BI11+BR11+CA11+CJ11+CS11+DB11+DK11+DT11+EC11+EL11+EU11+FD11+FM11+FV11+GE11+GN11+GW11+HF11+HO11+HX11+IG11+IP11+IY11+JH11+JQ11","v":0},"Total Daily Expenses ",0,null,null,null,null,null,null,null,null,{"$f":"P11+Q11+R11","v":0},null,null,null,null,null,null,null,null,{"$f":"Y11+Z11+AA11","v":0},null,null,null,null,null,null,null,null,{"$f":"AH11+AI11+AJ11","v":0},null,null,null,null,null,null,null,null,{"$f":"AQ11+AR11+AS11","v":0},null,null,null,null,null,null,null,null,{"$f":"AZ11+BA11+BB11","v":0},null,null,null,null,null,null,null,null,{"$f":"BI11+BJ11+BK11","v":0},null,null,null,null,null,null,null,null,{"$f":"BR11+BS11+BT11","v":0},null,null,null,null,null,null,null,null,{"$f":"CA11+CB11+CC11","v":0},null,null,null,null,null,null,null,null,{"$f":"CJ11+CK11+CL11","v":0},null,null,null,null,null,null,null,null,{"$f":"CS11+CT11+CU11","v":0},null,null,null,null,null,null,null,null,{"$f":"DB11+DC11+DD11","v":0},null,null,null,null,null,null,null,null,{"$f":"DK11+DL11+DM11","v":0},null,null,null,null,null,null,null,null,{"$f":"DT11+DU11+DV11","v":0},null,null,null,null,null,null,null,null,{"$f":"EC11+ED11+EE11","v":0},null,null,null,null,null,null,null,null,{"$f":"EL11+EM11+EN11","v":0},null,null,null,null,null,null,null,null,{"$f":"EU11+EV11+EW11","v":0},null,null,null,null,null,null,null,null,{"$f":"FD11+FE11+FF11","v":0},null,null,null,null,null,null,null,null,{"$f":"FM11+FN11+FO11","v":0},null,null,null,null,null,null,null,null,{"$f":"FV11+FW11+FX11","v":0},null,null,null,null,null,null,null,null,{"$f":"GE11+GF11+GG11","v":0},null,null,null,null,null,null,null,null,{"$f":"GN11+GO11+GP11","v":0},null,null,null,null,null,null,null,null,{"$f":"GW11+GX11+GY11","v":0},null,null,null,null,null,null,null,null,{"$f":"HF11+HG11+HH11","v":0},null,null,null,null,null,null,null,null,{"$f":"HO11+HP11+HQ11","v":0},null,null,null,null,null,null,null,null,{"$f":"HX11+HY11+HZ11","v":0},null,null,null,null,null,null,null,null,{"$f":"IG11+IH11+II11","v":0},null,null,null,null,null,null,null,null,{"$f":"IP11+IQ11+IR11","v":0},null,null,null,null,null,null,null,null,{"$f":"IY11+IZ11+JA11","v":0},null,null,null,null,null,null,null,null,{"$f":"JH11+JI11+JJ11","v":0},null,null,null,null,null,null,null,null,{"$f":"JQ11+JR11+JS11","v":0}]
["Monthly TVA Value",0,{"$f":"E10+E11+B9","v":0},"Monthly Discount",{"$f":"I11+R11+AA11+AJ11+AS11+BB11+BK11+BT11+CC11+CL11+CU11+DD11+DM11+DV11+EE11+EN11+EW11+FF11+FO11+FX11+GG11+GP11+GY11+HH11+HQ11+HZ11+II11+IR11+JA11+JJ11+JS11","v":0},null,0,{"$f":"IF(O14:O34=0,SUMPRODUCT(H14:H34,KG14:KG34),SUMPRODUCT(H14:H34,O14:O34))","v":0},0,{"$f":"IF(O14:O34=0,SUMPRODUCT(J14:J34,KG14:KG34,G14:G34)/100,SUMPRODUCT(J14:J34,O14:O34,G14:G34)/100)","v":0},null,null,null,null,null,0,{"$f":"IF(X14:X34=0,SUMPRODUCT(Q14:Q34,KG14:KG34),SUMPRODUCT(Q14:Q34,X14:X34))","v":0},0,{"$f":"IF(X14:X34=0,SUMPRODUCT(S14:S34,KG14:KG34,P14:P34)/100,SUMPRODUCT(S14:S34,X14:X34,P14:P34)/100)","v":0},null,null,null,null,null,0,{"$f":"IF(AG14:AG34=0,SUMPRODUCT(Z14:Z34,KG14:KG34),SUMPRODUCT(Z14:Z34,AG14:AG34))","v":0},0,{"$f":"IF(AG14:AG34=0,SUMPRODUCT(AB14:AB34,KG14:KG34,Y14:Y34)/100,SUMPRODUCT(AB14:AB34,AG14:AG34,Y14:Y34)/100)","v":0},null,null,null,null,null,0,{"$f":"IF(AP14:AP34=0,SUMPRODUCT(AI14:AI34,KG14:KG34),SUMPRODUCT(AI14:AI34,AP14:AP34))","v":0},0,{"$f":"IF(AP14:AP34,SUMPRODUCT(AK14:AK34,KG14:KG34,AH14:AH34)/100,SUMPRODUCT(AK14:AK34,AP14:AP34,AH14:AH34)/100)","v":0},null,null,null,null,null,0,{"$f":"IF(AY14:AY34=0,SUMPRODUCT(AR14:AR34,KG14:KG34),SUMPRODUCT(AR14:AR34,AY14:AY34))","v":0},0,{"$f":"IF(AY14:AY34=0,SUMPRODUCT(AT14:AT34,KG14:KG34,AQ14:AQ34)/100,SUMPRODUCT(AT14:AT34,AY14:AY34,AQ14:AQ34)/100)","v":0},null,null,null,null,null,0,{"$f":"IF(BH14:BH34=0,SUMPRODUCT(BA14:BA34,KG14:KG34),SUMPRODUCT(BA14:BA34,BH14:BH34))","v":0},0,{"$f":"IF(BH14:BH34=0,SUMPRODUCT(BC14:BC34,KG14:KG34,AZ14:AZ34)/100,SUMPRODUCT(BC14:BC34,BH14:BH34,AZ14:AZ34)/100)","v":0},null,null,null,null,null,0,{"$f":"IF(BQ14:BQ34=0,SUMPRODUCT(BJ14:BJ34,KG14:KG34),SUMPRODUCT(BJ14:BJ34,BQ14:BQ34))","v":0},0,{"$f":"IF(BQ14:BQ34=0,SUMPRODUCT(BL14:BL34,KG14:KG34,BI14:BI34)/100,SUMPRODUCT(BL14:BL34,BQ14:BQ34,BI14:BI34)/100)","v":0},null,null,null,null,null,0,{"$f":"IF(BZ14:BZ34=0,SUMPRODUCT(BS14:BS34,KG14:KG34),SUMPRODUCT(BS14:BS34,BZ14:BZ34))","v":0},0,{"$f":"IF(BZ14:BZ34=0,SUMPRODUCT(BU14:BU34,KG14:KG34,BR14:BR34)/100,SUMPRODUCT(BU14:BU34,BZ14:BZ34,BR14:BR34)/100)","v":0},null,null,null,null,null,0,{"$f":"IF(CI14:CI34=0,SUMPRODUCT(CB14:CB34,KG14:KG34),SUMPRODUCT(CB14:CB34,CI14:CI34))","v":0},0,{"$f":"IF(CI14:CI34=0,SUMPRODUCT(CD14:CD34,KG14:KG34,CA14:CA34)/100,SUMPRODUCT(CD14:CD34,CI14:CI34,CA14:CA34)/100)","v":0},null,null,null,null,null,0,{"$f":"IF(CR14:CR34=0,SUMPRODUCT(CK14:CK34,KG14:KG34),SUMPRODUCT(CK14:CK34,CR14:CR34))","v":0},0,{"$f":"IF(CR14:CR34=0,SUMPRODUCT(CM14:CM34,KG14:KG34,CJ14:CJ34)/100,SUMPRODUCT(CM14:CM34,CR14:CR34,CJ14:CJ34)/100)","v":0},null,null,null,null,null,0,{"$f":"IF(DA14:DA34=0,SUMPRODUCT(CT14:CT34,KG14:KG34),SUMPRODUCT(CT14:CT34,DA14:DA34))","v":0},0,{"$f":"IF(DA14:DA34=0,SUMPRODUCT(CV14:CV34,KG14:KG34,CS14:CS34)/100,SUMPRODUCT(CV14:CV34,DA14:DA34,CS14:CS34)/100)","v":0},null,null,null,null,null,0,{"$f":"SUMPRODUCT(DC14:DC34,KG14:KG34)","v":0},0,{"$f":"SUMPRODUCT(DE14:DE34,KG14:KG34,DB14:DB34)/100","v":0},null,null,null,null,null,0,{"$f":"IF(DS14:DS34=0,SUMPRODUCT(DL14:DL34,KG14:KG34),SUMPRODUCT(DL14:DL34,DS14:DS34))","v":0},0,{"$f":"IF(DS14:DS34=0,SUMPRODUCT(DN14:DN34,KG14:KG34,DK14:DK34)/100,SUMPRODUCT(DN14:DN34,DS14:DS34,DK14:DK34)/100)","v":0},null,null,null,null,null,0,{"$f":"IF(EB14:EB34=0,SUMPRODUCT(DU14:DU34,KG14:KG34),SUMPRODUCT(DU14:DU34,EB14:EB34))","v":0},0,{"$f":"IF(EB14:EB34=0,SUMPRODUCT(DW14:DW34,KG14:KG34,DT14:DT34)/100,SUMPRODUCT(DW14:DW34,EB14:EB34,DT14:DT34)/100)","v":0},null,null,null,null,null,0,{"$f":"IF(EK14:EK34=0,SUMPRODUCT(ED14:ED34,KG14:KG34),SUMPRODUCT(ED14:ED34,EK14:EK34))","v":0},0,{"$f":"IF(EK14:EK34=0,SUMPRODUCT(EF14:EF34,KG14:KG34,EC14:EC34)/100,SUMPRODUCT(EF14:EF34,EK14:EK34,EC14:EC34)/100)","v":0},null,null,null,null,null,0,{"$f":"IF(ET14:ET34=0,SUMPRODUCT(EM14:EM34,KG14:KG34),SUMPRODUCT(EM14:EM34,ET14:ET34))","v":0},0,{"$f":"IF(ET14:ET34=0,SUMPRODUCT(EO14:EO34,KG14:KG34,EL14:EL34)/100,SUMPRODUCT(EO14:EO34,ET14:ET34,EL14:EL34)/100)","v":0},null,null,null,null,null,0,{"$f":"IF(FC14:FC34=0,SUMPRODUCT(EV14:EV34,KG14:KG34),SUMPRODUCT(EV14:EV34,FC14:FC34))","v":0},0,{"$f":"IF(FC14:FC34=0,SUMPRODUCT(EX14:EX34,KG14:KG34,EU14:EU34)/100,SUMPRODUCT(EX14:EX34,FC14:FC34,EU14:EU34)/100)","v":0},null,null,null,null,null,0,{"$f":"IF(FL14:FL34=0,SUMPRODUCT(FE14:FE34,KG14:KG34),SUMPRODUCT(FE14:FE34,FL14:FL34))","v":0},0,{"$f":"IF(FL14:FL34=0,SUMPRODUCT(FG14:FG34,KG14:KG34,FD14:FD34)/100,SUMPRODUCT(FG14:FG34,FL14:FL34,FD14:FD34)/100)","v":0},null,null,null,null,null,0,{"$f":"IF(FU14:FU34=0,SUMPRODUCT(FN14:FN34,KG14:KG34),SUMPRODUCT(FN14:FN34,FU14:FU34))","v":0},0,{"$f":"IF(FU14:FU34=0,SUMPRODUCT(FP14:FP34,KG14:KG34,FM14:FM34)/100,SUMPRODUCT(FP14:FP34,FU14:FU34,FM14:FM34)/100)","v":0},null,null,null,null,null,0,{"$f":"IF(GD14:GD34=0,SUMPRODUCT(FW14:FW34,KG14:KG34),SUMPRODUCT(FW14:FW34,GD14:GD34))","v":0},0,{"$f":"IF(GD14:GD34=0,SUMPRODUCT(FY14:FY34,KG14:KG34,FV14:FV34)/100,SUMPRODUCT(FY14:FY34,GD14:GD34,FV14:FV34)/100)","v":0},null,null,null,null,null,0,{"$f":"IF(GM14:GM34=0,SUMPRODUCT(GF14:GF34,KG14:KG34),SUMPRODUCT(GF14:GF34,GM14:GM34))","v":0},0,{"$f":"IF(GM14:GM34=0,SUMPRODUCT(GH14:GH34,KG14:KG34,GE14:GE34)/100,SUMPRODUCT(GH14:GH34,GM14:GM34,GE14:GE34)/100)","v":0},null,null,null,null,null,0,{"$f":"IF(GV14:GV34=0,SUMPRODUCT(GO14:GO34,KG14:KG34),SUMPRODUCT(GO14:GO34,GV14:GV34))","v":0},0,{"$f":"IF(GV14:GV34=0,SUMPRODUCT(GQ14:GQ34,KG14:KG34,GN14:GN34)/100,SUMPRODUCT(GQ14:GQ34,GV14:GV34,GN14:GN34)/100)","v":0},null,null,null,null,null,0,{"$f":"IF(HE14:HE34=0,SUMPRODUCT(GX14:GX34,KG14:KG34),SUMPRODUCT(GX14:GX34,HE14:HE34))","v":0},0,{"$f":"IF(HE14:HE34=0,SUMPRODUCT(GZ14:GZ34,KG14:KG34,GW14:GW34)/100,SUMPRODUCT(GZ14:GZ34,HE14:HE34,GW14:GW34)/100)","v":0},null,null,null,null,null,0,{"$f":"SUMPRODUCT(HG14:HG34,KG14:KG34)","v":0},0,{"$f":"SUMPRODUCT(HI14:HI34,KG14:KG34,HF14:HF34)/100","v":0},null,null,null,null,null,0,{"$f":"IF(HW14:HW34=0,SUMPRODUCT(HP14:HP34,KG14:KG34),SUMPRODUCT(HP14:HP34,HW14:HW34))","v":0},0,{"$f":"IF(HW14:HW34=0,SUMPRODUCT(HR14:HR34,KG14:KG34,HO14:HO34)/100,SUMPRODUCT(HR14:HR34,HW14:HW34,HO14:HO34)/100)","v":0},null,null,null,null,null,0,{"$f":"IF(IF14:IF34=0,SUMPRODUCT(HY14:HY34,KG14:KG34),SUMPRODUCT(HY14:HY34,IF14:IF34))","v":0},0,{"$f":"IF(IF14:IF34=0,SUMPRODUCT(IA14:IA34,KG14:KG34,HX14:HX34)/100,SUMPRODUCT(IA14:IA34,IF14:IF34,HX14:HX34)/100)","v":0},null,null,null,null,null,0,{"$f":"IF(IO14:IO34=0,SUMPRODUCT(IH14:IH34,KG14:KG34),SUMPRODUCT(IH14:IH34,IO14:IO34))","v":0},0,{"$f":"IF(IO14:IO34=0,SUMPRODUCT(IJ14:IJ34,KG14:KG34,IG14:IG34)/100,SUMPRODUCT(IJ14:IJ34,IO14:IO34,IG14:IG34)/100)","v":0},null,null,null,null,null,0,{"$f":"IF(IX14:IX34=0,SUMPRODUCT(IQ14:IQ34,KG14:KG34),SUMPRODUCT(IQ14:IQ34,IX14:IX34))","v":0},0,{"$f":"IF(IX14:IX34=0,SUMPRODUCT(IS14:IS34,KG14:KG34,IP14:IP34)/100,SUMPRODUCT(IS14:IS34,IX14:IX34,IP14:IP34)/100)","v":0},null,null,null,null,null,0,{"$f":"IF(JG14:JG34=0,SUMPRODUCT(IZ14:IZ34,KG14:KG34),SUMPRODUCT(IZ14:IZ34,JG14:JG34))","v":0},0,{"$f":"IF(JG14:JG34=0,SUMPRODUCT(JB14:JB34,KG14:KG34,IY14:IY34)/100,SUMPRODUCT(JB14:JB34,JG14:JG34,IY14:IY34)/100)","v":0},null,null,null,null,null,0,{"$f":"IF(JP14:JP34=0,SUMPRODUCT(JI14:JI34,KG14:KG34),SUMPRODUCT(JI14:JI34,JP14:JP34))","v":0},0,{"$f":"IF(JP14:JP34=0,SUMPRODUCT(JK14:JK34,KG14:KG34,JH14:JH34)/100,SUMPRODUCT(JK14:JK34,JP14:JP34,JH14:JH34)/100)","v":0},null,null,null,null,null,0,{"$f":"IF(JY14:JY34=0,SUMPRODUCT(JR14:JR34,KG14:KG34),SUMPRODUCT(JR14:JR34,JY14:JY34))","v":0},0,{"$f":"IF(JY14:JY34=0,SUMPRODUCT(JT14:JT34,KG14:KG34,JQ14:JQ34)/100,SUMPRODUCT(JT14:JT34,JY14:JY34,JQ14:JQ34)/100)","v":0}]
[null,"TOTAL GEN.==>",null,null,{"$f":"SUM(E14:E34)","v":550},{"$f":"SUM(F14:F34)","v":405},0,null,{"$f":"IF(O14:O34=0,(SUMPRODUCT(I14:I34,KG14:KG34)/100)*G12,(SUMPRODUCT(I14:I34,O14:O34)/100)*G12)","v":0},null,null,null,null,null,null,0,null,{"$f":"IF((X14:X34)=0,(SUMPRODUCT(R14:R34,KG14:KG34)/100)*P12,(SUMPRODUCT(R14:R34,X14:X34)/100)*P12)","v":0},null,null,null,null,null,null,0,null,{"$f":"IF(AG14:AG34=0,(SUMPRODUCT(AA14:AA34,KG14:KG34)/100)*Y12,(SUMPRODUCT(AA14:AA34,AG14:AG34)/100)*Y12)","v":0},null,null,null,null,null,null,0,null,{"$f":"IF(AP14:AP34=0,(SUMPRODUCT(AJ14:AJ34,KG14:KG34)/100)*AH12,(SUMPRODUCT(AJ14:AJ34,AP14:AP34)/100)*AH12)","v":0},null,null,null,null,null,null,0,null,{"$f":"IF(AY14:AY34=0,(SUMPRODUCT(AS14:AS34,KG14:KG34)/100)*AQ12,(SUMPRODUCT(AS14:AS34,AY14:AY34)/100)*AQ12)","v":0},null,null,null,null,null,null,0,null,{"$f":"IF(BH14:BH34=0,(SUMPRODUCT(BB14:BB34,KG14:KG34)/100)*AZ12,(SUMPRODUCT(BB14:BB34,BH14:BH34)/100)*AZ12)","v":0},null,null,null,null,null,null,0,null,{"$f":"IF(BQ14:BQ34=0,(SUMPRODUCT(BK14:BK34,KG14:KG34)/100)*BI12,(SUMPRODUCT(BK14:BK34,BQ14:BQ34)/100)*BI12)","v":0},null,null,null,null,null,null,0,null,{"$f":"IF(BZ14:BZ34=0,(SUMPRODUCT(BT14:BT34,KG14:KG34)/100)*BR12,(SUMPRODUCT(BT14:BT34,BZ14:BZ34)/100)*BR12)","v":0},null,null,null,null,null,null,0,null,{"$f":"IF(CI14:CI34=0,(SUMPRODUCT(CC14:CC34,KG14:KG34)/100)*CA12,(SUMPRODUCT(CC14:CC34,CI14:CI34)/100)*CA12)","v":0},null,null,null,null,null,null,0,null,{"$f":"IF(CR14:CR34=0,(SUMPRODUCT(CL14:CL34,KG14:KG34)/100)*CJ12,(SUMPRODUCT(CL14:CL34,CR14:CR34)/100)*CJ12)","v":0},null,null,null,null,null,null,0,null,{"$f":"IF(DA14:DA34=0,(SUMPRODUCT(CU14:CU34,KG14:KG34)/100)*CS12,(SUMPRODUCT(CU14:CU34,DA14:DA34)/100)*CS12)","v":0},null,null,null,null,null,null,0,null,{"$f":"(SUMPRODUCT(DD14:DD34,KG14:KG34)/100)*DB12","v":0},null,null,null,null,null,null,0,null,{"$f":"IF(DS14:DS34=0,(SUMPRODUCT(DM14:DM34,KG14:KG34)/100)*DK12,(SUMPRODUCT(DM14:DM34,DS14:DS34)/100)*DK12)","v":0},null,null,null,null,null,null,0,null,{"$f":"IF(EB14:EB34=0,(SUMPRODUCT(DV14:DV34,KG14:KG34)/100)*DT12,(SUMPRODUCT(DV14:DV34,EB14:EB34)/100)*DT12)","v":0},null,null,null,null,null,null,0,null,{"$f":"IF(EK14:EK34=0,(SUMPRODUCT(EE14:EE34,KG14:KG34)/100)*EC12,(SUMPRODUCT(EE14:EE34,EK14:EK34)/100)*EC12)","v":0},null,null,null,null,null,null,0,null,{"$f":"IF(ET14:ET34=0,(SUMPRODUCT(EN14:EN34,KG14:KG34)/100)*EL12,(SUMPRODUCT(EN14:EN34,ET14:ET34)/100)*EL12)","v":0},null,null,null,null,null,null,0,null,{"$f":"IF(FC14:FC34=0,(SUMPRODUCT(EW14:EW34,KG14:KG34)/100)*EU12,(SUMPRODUCT(EW14:EW34,FC14:FC34)/100)*EU12)","v":0},null,null,null,null,null,null,0,null,{"$f":"IF(FL14:FL34=0,(SUMPRODUCT(FF14:FF34,KG14:KG34)/100)*FD12,(SUMPRODUCT(FF14:FF34,FL14:FL34)/100)*FD12)","v":0},null,null,null,null,null,null,0,null,{"$f":"IF(FU14:FU34=0,(SUMPRODUCT(FO14:FO34,KG14:KG34)/100)*FM12,(SUMPRODUCT(FO14:FO34,FU14:FU34)/100)*FM12)","v":0},null,null,null,null,null,null,0,null,{"$f":"IF(GD14:GD34=0,(SUMPRODUCT(FX14:FX34,KG14:KG34)/100)*FV12,(SUMPRODUCT(FX14:FX34,GD14:GD34)/100)*FV12)","v":0},null,null,null,null,null,null,0,null,{"$f":"IF(GM14:GM34=0,(SUMPRODUCT(GG14:GG34,KG14:KG34)/100)*GE12,(SUMPRODUCT(GG14:GG34,GM14:GM34)/100)*GE12)","v":0},null,null,null,null,null,null,0,null,{"$f":"IF(GV14:GV34=0,(SUMPRODUCT(GP14:GP34,KG14:KG34)/100)*GN12,(SUMPRODUCT(GP14:GP34,GV14:GV34)/100)*GN12)","v":0},null,null,null,null,null,null,0,null,{"$f":"IF(HE14:HE34=0,(SUMPRODUCT(GY14:GY34,KG14:KG34)/100)*GW12,(SUMPRODUCT(GY14:GY34,HE14:HE34)/100)*GW12)","v":0},null,null,null,null,null,null,0,null,{"$f":"(SUMPRODUCT(HH14:HH34,KG14:KG34)/100)*HF12","v":0},null,null,null,null,null,null,0,null,{"$f":"IF(HW14:HW34=0,(SUMPRODUCT(HQ14:HQ34,KG14:KG34)/100)*HO12,(SUMPRODUCT(HQ14:HQ34,HW14:HW34)/100)*HO12)","v":0},null,null,null,null,null,null,0,null,{"$f":"IF(IF14:IF34=0,(SUMPRODUCT(HZ14:HZ34,KG14:KG34)/100)*HX12,(SUMPRODUCT(HZ14:HZ34,IF14:IF34)/100)*HX12)","v":0},null,null,null,null,null,null,0,null,{"$f":"IF(IO14:IO34=0,(SUMPRODUCT(II14:II34,KG14:KG34)/100)*IG12,(SUMPRODUCT(II14:II34,IO14:IO34)/100)*IG12)","v":0},null,null,null,null,null,null,0,null,{"$f":"IF(IX14:IX34=0,(SUMPRODUCT(IR14:IR34,KG14:KG34)/100)*IP12,(SUMPRODUCT(IR14:IR34,IX14:IX34)/100)*IP12)","v":0},null,null,null,null,null,null,0,null,{"$f":"IF(JG14:JG34=0,(SUMPRODUCT(JA14:JA34,KG14:KG34)/100)*IY12,(SUMPRODUCT(JA14:JA34,JG14:JG34)/100)*IY12)","v":0},null,null,null,null,null,null,0,null,{"$f":"IF(JP14:JP34=0,(SUMPRODUCT(JJ14:JJ34,KG14:KG34)/100)*JH12,(SUMPRODUCT(JJ14:JJ34,JP14:JP34)/100)*JH12)","v":0},null,null,null,null,null,null,0,null,{"$f":"IF(JY14:JY34=0,(SUMPRODUCT(JS14:JS34,KG14:KG34)/100)*JQ12,(SUMPRODUCT(JS14:JS34,JY14:JY34)/100)*JQ12)","v":0},null,null,null,null,null,null,{"$f":"SUM(JZ14:JZ34)","v":155},{"$f":"SUM(KA14:KA34)","v":479},null,{"$f":"SUM(KC14:KC34)","v":0},null,null,{"$f":"SUM(KF14:KF34)","v":0},null,{"$f":"SUM(KH14:KH34)","v":0},0,0,550,0,0,0]
["Product Ref.","Product name","Product Category","Product Code"," Total Stock","Current Stock","Quantity Sold","Quantity product Broken, stolen or gifted","Product Discount in %","TVA in %","Daily Start Stock","Daily Final Stock","Additionnal Stock","New Unit Purchasing Price","New Unit Selling Price","Quantity Sold","Quantity product Broken, stolen or gifted","Product Discount in %","TVA in %","Daily Start Stock","Daily Final Stock","Additionnal Stock","New Unit Purchasing Price","New Unit Selling Price","Quantity Sold","Quantity product Broken, stolen or gifted","Product Discount in %","TVA in %","Daily Start Stock","Daily Final Stock","Additionnal Stock","New Unit Purchasing Price","New Unit Selling Price","Quantity Sold","Quantity product Broken, stolen or gifted","Product Discount in %","TVA in %","Daily Start Stock","Daily Final Stock","Additionnal Stock","New Unit Purchasing Price","New Unit Selling Price","Quantity Sold","Quantity product Broken, stolen or gifted","Product Discount in %","TVA in %","Daily Start Stock","Daily Final Stock","Additionnal Stock","New Unit Purchasing Price","New Unit Selling Price","Quantity Sold","Quantity product Broken, stolen or gifted","Product Discount in %","TVA in %","Daily Start Stock","Daily Final Stock","Additionnal Stock","New Unit Purchasing Price","New Unit Selling Price","Quantity Sold","Quantity product Broken, stolen or gifted","Product Discount in %","TVA in %","Daily Start Stock","Daily Final Stock","Additionnal Stock","New Unit Purchasing Price","New Unit Selling Price","Quantity Sold","Quantity product Broken, stolen or gifted","Product Discount in %","TVA in %","Daily Start Stock","Daily Final Stock","Additionnal Stock","New Unit Purchasing Price","New Unit Selling Price","Quantity Sold","Quantity product Broken, stolen or gifted","Product Discount in %","TVA in %","Daily Start Stock","Daily Final Stock","Additionnal Stock","New Unit Purchasing Price","New Unit Selling Price","Quantity Sold","Quantity product Broken, stolen or gifted","Product Discount in %","TVA in %","Daily Start Stock","Daily Final Stock","Additionnal Stock","New Unit Purchasing Price","New Unit Selling Price","Quantity Sold","Quantity product Broken, stolen or gifted","Product Discount in %","TVA in %","Daily Start Stock","Daily Final Stock","Additionnal Stock","New Unit Purchasing Price","New Unit Selling Price","Quantity Sold","Quantity product Broken, stolen or gifted","Product Discount in %","TVA in %","Daily Start Stock","Daily Final Stock","Additionnal Stock","New Unit Purchasing Price","New Unit Selling Price","Quantity Sold","Quantity product Broken, stolen or gifted","Product Discount in %","TVA in %","Daily Start Stock","Daily Final Stock","Additionnal Stock","New Unit Purchasing Price","New Unit Selling Price","Quantity Sold","Quantity product Broken, stolen or gifted","Product Discount in %","TVA in %","Daily Start Stock","Daily Final Stock","Additionnal Stock","New Unit Purchasing Price","New Unit Selling Price","Quantity Sold","Quantity product Broken, stolen or gifted","Product Discount in %","TVA in %","Daily Start Stock","Daily Final Stock","Additionnal Stock","New Unit Purchasing Price","New Unit Selling Price","Quantity Sold","Quantity product Broken, stolen or gifted","Product Discount in %","TVA in %","Daily Start Stock","Daily Final Stock","Additionnal Stock","New Unit Purchasing Price","New Unit Selling Price","Quantity Sold","Quantity product Broken, stolen or gifted","Product Discount in %","TVA in %","Daily Start Stock","Daily Final Stock","Additionnal Stock","New Unit Purchasing Price","New Unit Selling Price","Quantity Sold","Quantity product Broken, stolen or gifted","Product Discount in %","TVA in %","Daily Start Stock","Daily Final Stock","Additionnal Stock","New Unit Purchasing Price","New Unit Selling Price","Quantity Sold","Quantity product Broken, stolen or gifted","Product Discount in %","TVA in %","Daily Start Stock","Daily Final Stock","Additionnal Stock","New Unit Purchasing Price","New Unit Selling Price","Quantity Sold","Quantity product Broken, stolen or gifted","Product Discount in %","TVA in %","Daily Start Stock","Daily Final Stock","Additionnal Stock","New Unit Purchasing Price","New Unit Selling Price","Quantity Sold","Quantity product Broken, stolen or gifted","Product Discount in %","TVA in %","Daily Start Stock","Daily Final Stock","Additionnal Stock","New Unit Purchasing Price","New Unit Selling Price","Quantity Sold","Quantity product Broken, stolen or gifted","Product Discount in %","TVA in %","Daily Start Stock","Daily Final Stock","Additionnal Stock","New Unit Purchasing Price","New Unit Selling Price","Quantity Sold","Quantity product Broken, stolen or gifted","Product Discount in %","TVA in %","Daily Start Stock","Daily Final Stock","Additionnal Stock","New Unit Purchasing Price","New Unit Selling Price","Quantity Sold","Quantity product Broken, stolen or gifted","Product Discount in %","TVA in %","Daily Start Stock","Daily Final Stock","Additionnal Stock","New Unit Purchasing Price","New Unit Selling Price","Quantity Sold","Quantity product Broken, stolen or gifted","Product Discount in %","TVA in %","Daily Start Stock","Daily Final Stock","Additionnal Stock","New Unit Purchasing Price","New Unit Selling Price","Quantity Sold","Quantity product Broken, stolen or gifted","Product Discount in %","TVA in %","Daily Start Stock","Daily Final Stock","Additionnal Stock","New Unit Purchasing Price","New Unit Selling Price","Quantity Sold","Quantity product Broken, stolen or gifted","Product Discount in %","TVA in %","Daily Start Stock","Daily Final Stock","Additionnal Stock","New Unit Purchasing Price","New Unit Selling Price","Quantity Sold","Quantity product Broken, stolen or gifted","Product Discount in %","TVA in %","Daily Start Stock","Daily Final Stock","Additionnal Stock","New Unit Purchasing Price","New Unit Selling Price","Quantity Sold","Quantity product Broken, stolen or gifted","Product Discount in %","TVA in %","Daily Start Stock","Daily Final Stock","Additionnal Stock","New Unit Purchasing Price","New Unit Selling Price","Quantity Sold","Quantity product Broken, stolen or gifted","Product Discount in %","TVA in %","Daily Start Stock","Daily Final Stock","Additionnal Stock","New Unit Purchasing Price","New Unit Selling Price","Quantity Sold","Quantity product Broken, stolen or gifted","Product Discount in %","TVA in %","Daily Start Stock","Daily Final Stock","Additionnal Stock","New Unit Purchasing Price","New Unit Selling Price","Sold Stock","CA_Jan","Unit Purchasing Price","Total Purchasing Price ","Unit  Charge","Unit   Cost Price","Total Cost Price","Unit Selling Price","Monthly  Quantity product Broken, stolen or gifted","Expected Gross Total Profit"," Expected Total Selling Price ","Additional Stock","New Unit Purchasing Price ","New Unit Seling Price","Additional Cost","Average Unit Purchasing Price","Unit Charge before Add.",null,"Cost Price","%  Gross Sales ","Gross Profit"]
[1,"AMPOULE LED SPIRALE 15W","ECLAIRAGE","AMP87845",{"$f":"KK14","v":20},{"$f":"E14-SUM(G14:H14,P14:Q14,Y14:Z14,AH14:AI14,AQ14:AR14,AZ14:BA14,BI14:BJ14,BR14:BS14,CA14:CB14,CJ14:CK14,CS14:CT14,DB14:DC14,DK14:DL14,DT14:DU14,EC14:ED14,EL14:EM14,EU14:EV14,FD14:FE14,FM14:FN14,FV14:FW14,GE14:GF14,GN14:GO14,GW14:GX14,HF14:HG14,HO14:HP14,HX14:HY14,IG14:IH14,IP14:IQ14,IY14:IZ14,JH14:JI14,JQ14:JR14)","v":10},null,null,null,0,0,0,5,0,0,null,null,null,0,0,0,0,0,0,null,null,null,0,0,0,0,0,0,null,null,null,0,0,0,0,0,0,null,null,null,0,0,0,0,0,0,null,null,null,0,0,0,0,0,0,null,null,null,0,0,0,0,0,0,null,null,null,0,0,0,0,0,0,null,null,null,0,0,0,0,0,0,null,null,null,0,0,0,0,0,0,null,null,null,0,0,0,0,0,0,null,null,null,0,0,0,0,0,0,null,null,null,0,0,0,0,0,0,null,null,null,0,0,0,0,0,0,null,null,null,0,0,0,0,0,0,null,null,null,0,0,0,0,0,0,null,null,null,0,0,0,0,0,0,null,null,null,0,0,0,0,0,0,null,null,null,0,0,0,0,0,0,null,null,null,0,0,0,0,0,0,null,null,null,0,0,0,0,0,0,null,null,null,0,0,0,0,0,0,null,null,null,0,0,0,0,0,0,null,null,null,0,0,0,0,0,0,null,null,null,0,0,0,0,0,0,null,null,null,0,0,0,0,0,0,null,null,null,0,0,0,0,0,0,null,null,null,0,0,0,0,0,0,null,null,null,0,0,0,0,0,0,null,null,null,0,0,0,0,0,0,10,null,null,0,0,0,0,0,0,10,50,0,0,0,0,0,0,0,0,0,20,0,0,0,0,null,null,3,0.02,230]
[2,"AMPOULE LED SPIRALE 20W","ECLAIRAGE","AMP878522",{"$f":"KK15","v":30},25,null,null,null,0,0,0,0,0,0,null,null,null,0,0,0,0,0,0,null,null,null,0,0,0,0,0,0,null,null,null,0,0,0,0,0,0,null,null,null,0,0,0,0,0,0,null,null,null,0,0,0,0,0,0,null,null,null,0,0,0,0,0,0,null,null,null,0,0,0,0,0,0,null,null,null,0,0,0,0,0,0,null,null,null,0,0,0,0,0,0,null,null,null,0,0,0,0,0,0,null,null,null,0,0,0,0,0,0,null,null,null,0,0,0,0,0,0,null,null,null,0,0,0,0,0,0,null,null,null,0,0,0,0,0,0,null,null,null,0,0,0,0,0,0,null,null,null,0,0,0,0,0,0,null,null,null,0,0,0,0,0,0,null,null,null,0,0,0,0,0,0,null,null,null,0,0,0,0,0,0,null,null,null,0,0,0,0,0,0,null,null,null,0,0,0,0,0,0,null,null,null,0,0,0,0,0,0,null,null,null,0,0,0,0,0,0,null,null,null,0,0,0,0,0,0,null,null,null,0,0,0,0,0,0,null,null,null,0,0,0,0,0,0,null,null,null,0,0,0,0,0,0,null,null,null,0,0,0,0,0,0,null,null,null,0,0,0,0,0,0,5,null,null,0,0,0,0,0,0,5,20,0,0,0,0,0,0,0,0,0,30,0,0,0,0,null,null,9,0.05,52]
[3,"PEINTURE 1L BLANC","PEINTURE","PEINT12311",10,0,null,null,null,0,0,0,0,0,0,null,null,null,0,0,0,0,0,0,null,null,null,0,0,0,0,0,0,null,null,null,0,0,0,0,0,0,null,null,null,0,0,0,0,0,0,null,null,null,0,0,0,0,0,0,null,null,null,0,0,0,0,0,0,null,null,null,0,0,0,0,0,0,null,null,null,0,0,0,0,0,0,null,null,null,0,0,0,0,0,0,null,null,null,0,0,0,0,0,0,null,null,null,0,0,0,0,0,0,null,null,null,0,0,0,0,0,0,null,null,null,0,0,0,0,0,0,null,null,null,0,0,0,0,0,0,null,null,null,0,0,0,0,0,0,null,null,null,0,0,0,0,0,0,null,null,null,0,0,0,0,0,0,null,null,null,0,0,0,0,0,0,null,null,null,0,0,0,0,0,0,null,null,null,0,0,0,0,0,0,null,null,null,0,0,0,0,0,0,null,null,null,0,0,0,0,0,0,null,null,null,0,0,0,0,0,0,null,null,null,0,0,0,0,0,0,null,null,null,0,0,0,0,0,0,null,null,null,0,0,0,0,0,0,null,null,null,0,0,0,0,0,0,null,null,null,0,0,0,0,0,0,null,null,null,0,0,0,0,0,0,10,null,null,0,0,0,0,0,0,10,20,0,0,0,0,0,0,0,0,0,10,0,0,0,0,null,null,5,0.08,12]
[4,"ROBINET 1.5","PLOMBERIE","ROB5852",10,4,null,null,null,0,0,0,0,0,0,null,null,null,0,0,0,0,0,0,null,null,null,0,0,0,0,0,0,null,null,null,0,0,0,0,0,0,null,null,null,0,0,0,0,0,0,null,null,null,0,0,0,0,0,0,null,null,null,0,0,0,0,0,0,null,null,null,0,0,0,0,0,0,null,null,null,0,0,0,0,0,0,null,null,null,0,0,0,0,0,0,null,null,null,0,0,0,0,0,0,null,null,null,0,0,0,0,0,0,null,null,null,0,0,0,0,0,0,null,null,null,0,0,0,0,0,0,null,null,null,0,0,0,0,0,0,null,null,null,0,0,0,0,0,0,null,null,null,0,0,0,0,0,0,null,null,null,0,0,0,0,0,0,null,null,null,0,0,0,0,0,0,null,null,null,0,0,0,0,0,0,null,null,null,0,0,0,0,0,0,null,null,null,0,0,0,0,0,0,null,null,null,0,0,0,0,0,0,null,null,null,0,0,0,0,0,0,null,null,null,0,0,0,0,0,0,null,null,null,0,0,0,0,0,0,null,null,null,0,0,0,0,0,0,null,null,null,0,0,0,0,0,0,null,null,null,0,0,0,0,0,0,null,null,null,0,0,0,0,0,0,6,null,null,0,0,0,0,0,0,6,10,0,0,0,0,0,0,0,0,0,10,0,0,0,0,null,null,6,7.0000000000000007E-2,10]
[5,"AMPOULE LED SPIRALE 3W","ECLAIRAGE","APM1",20,12,null,null,null,0,0,0,0,0,0,null,null,null,0,0,0,0,0,0,null,null,null,0,0,0,0,0,0,null,null,null,0,0,0,0,0,0,null,null,null,0,0,0,0,0,0,null,null,null,0,0,0,0,0,0,null,null,null,0,0,0,0,0,0,null,null,null,0,0,0,0,0,0,null,null,null,0,0,0,0,0,0,null,null,null,0,0,0,0,0,0,null,null,null,0,0,0,0,0,0,null,null,null,0,0,0,0,0,0,null,null,null,0,0,0,0,0,0,null,null,null,0,0,0,0,0,0,null,null,null,0,0,0,0,0,0,null,null,null,0,0,0,0,0,0,null,null,null,0,0,0,0,0,0,null,null,null,0,0,0,0,0,0,null,null,null,0,0,0,0,0,0,null,null,null,0,0,0,0,0,0,null,null,null,0,0,0,0,0,0,null,null,null,0,0,0,0,0,0,null,null,null,0,0,0,0,0,0,null,null,null,0,0,0,0,0,0,null,null,null,0,0,0,0,0,0,null,null,null,0,0,0,0,0,0,null,null,null,0,0,0,0,0,0,null,null,null,0,0,0,0,0,0,null,null,null,0,0,0,0,0,0,null,null,null,0,0,0,0,0,0,8,null,null,0,0,0,0,0,0,8,26,0,0,0,0,0,0,0,0,0,20,0,0,0,0,null,null,1,0.05,12]
[6,"AMPOULE LED SPIRALE 5W","ECLAIRAGE","APM2",30,22,null,null,null,0,0,0,0,0,0,null,null,null,0,0,0,0,0,0,null,null,null,0,0,0,0,0,0,null,null,null,0,0,0,0,0,0,null,null,null,0,0,0,0,0,0,null,null,null,0,0,0,0,0,0,null,null,null,0,0,0,0,0,0,null,null,null,0,0,0,0,0,0,null,null,null,0,0,0,0,0,0,null,null,null,0,0,0,0,0,0,null,null,null,0,0,0,0,0,0,null,null,null,0,0,0,0,0,0,null,null,null,0,0,0,0,0,0,null,null,null,0,0,0,0,0,0,null,null,null,0,0,0,0,0,0,null,null,null,0,0,0,0,0,0,null,null,null,0,0,0,0,0,0,null,null,null,0,0,0,0,0,0,null,null,null,0,0,0,0,0,0,null,null,null,0,0,0,0,0,0,null,null,null,0,0,0,0,0,0,null,null,null,0,0,0,0,0,0,null,null,null,0,0,0,0,0,0,null,null,null,0,0,0,0,0,0,null,null,null,0,0,0,0,0,0,null,null,null,0,0,0,0,0,0,null,null,null,0,0,0,0,0,0,null,null,null,0,0,0,0,0,0,null,null,null,0,0,0,0,0,0,null,null,null,0,0,0,0,0,0,8,null,null,0,0,0,0,0,0,8,26,0,0,0,0,0,0,0,0,0,30,0,0,0,0,null,null,2,7.0000000000000007E-2,5]
[7,"AMPOULE LED SPIRALE 10W","ECLAIRAGE","APM3",20,10,null,null,null,0,0,0,0,0,0,null,null,null,0,0,0,0,0,0,null,null,null,0,0,0,0,0,0,null,null,null,0,0,0,0,0,0,null,null,null,0,0,0,0,0,0,null,null,null,0,0,0,0,0,0,null,null,null,0,0,0,0,0,0,null,null,null,0,0,0,0,0,0,null,null,null,0,0,0,0,0,0,null,null,null,0,0,0,0,0,0,null,null,null,0,0,0,0,0,0,null,null,null,0,0,0,0,0,0,null,null,null,0,0,0,0,0,0,null,null,null,0,0,0,0,0,0,null,null,null,0,0,0,0,0,0,null,null,null,0,0,0,0,0,0,null,null,null,0,0,0,0,0,0,null,null,null,0,0,0,0,0,0,null,null,null,0,0,0,0,0,0,null,null,null,0,0,0,0,0,0,null,null,null,0,0,0,0,0,0,null,null,null,0,0,0,0,0,0,null,null,null,0,0,0,0,0,0,null,null,null,0,0,0,0,0,0,null,null,null,0,0,0,0,0,0,null,null,null,0,0,0,0,0,0,null,null,null,0,0,0,0,0,0,null,null,null,0,0,0,0,0,0,null,null,null,0,0,0,0,0,0,null,null,null,0,0,0,0,0,0,10,null,null,0,0,0,0,0,0,10,15,0,0,0,0,0,0,0,0,0,20,0,0,0,0,null,null,5,0.09,8]
[8,"AMPOULE LED SPIRALE 25W","ECLAIRAGE","APM4",25,17,null,null,null,0,0,0,0,0,0,null,null,null,0,0,0,0,0,0,null,null,null,0,0,0,0,0,0,null,null,null,0,0,0,0,0,0,null,null,null,0,0,0,0,0,0,null,null,null,0,0,0,0,0,0,null,null,null,0,0,0,0,0,0,null,null,null,0,0,0,0,0,0,null,null,null,0,0,0,0,0,0,null,null,null,0,0,0,0,0,0,null,null,null,0,0,0,0,0,0,null,null,null,0,0,0,0,0,0,null,null,null,0,0,0,0,0,0,null,null,null,0,0,0,0,0,0,null,null,null,0,0,0,0,0,0,null,null,null,0,0,0,0,0,0,null,null,null,0,0,0,0,0,0,null,null,null,0,0,0,0,0,0,null,null,null,0,0,0,0,0,0,null,null,null,0,0,0,0,0,0,null,null,null,0,0,0,0,0,0,null,null,null,0,0,0,0,0,0,null,null,null,0,0,0,0,0,0,null,null,null,0,0,0,0,0,0,null,null,null,0,0,0,0,0,0,null,null,null,0,0,0,0,0,0,null,null,null,0,0,0,0,0,0,null,null,null,0,0,0,0,0,0,null,null,null,0,0,0,0,0,0,null,null,null,0,0,0,0,0,0,8,null,null,0,0,0,0,0,0,8,12,0,0,0,0,0,0,0,0,0,25,0,0,0,0,null,null,8,0.02,4]
[9,"AMPOULE LED SPIRALE 30W","ECLAIRAGE","APM5",13,1,null,null,null,0,0,0,0,0,0,null,null,null,0,0,0,0,0,0,null,null,null,0,0,0,0,0,0,null,null,null,0,0,0,0,0,0,null,null,null,0,0,0,0,0,0,null,null,null,0,0,0,0,0,0,null,null,null,0,0,0,0,0,0,null,null,null,0,0,0,0,0,0,null,null,null,0,0,0,0,0,0,null,null,null,0,0,0,0,0,0,null,null,null,0,0,0,0,0,0,null,null,null,0,0,0,0,0,0,null,null,null,0,0,0,0,0,0,null,null,null,0,0,0,0,0,0,null,null,null,0,0,0,0,0,0,null,null,null,0,0,0,0,0,0,null,null,null,0,0,0,0,0,0,null,null,null,0,0,0,0,0,0,null,null,null,0,0,0,0,0,0,null,null,null,0,0,0,0,0,0,null,null,null,0,0,0,0,0,0,null,null,null,0,0,0,0,0,0,null,null,null,0,0,0,0,0,0,null,null,null,0,0,0,0,0,0,null,null,null,0,0,0,0,0,0,null,null,null,0,0,0,0,0,0,null,null,null,0,0,0,0,0,0,null,null,null,0,0,0,0,0,0,null,null,null,0,0,0,0,0,0,null,null,null,0,0,0,0,0,0,12,null,null,0,0,0,0,0,0,12,25,0,0,0,0,0,0,0,0,0,13,0,0,0,0,null,null,8,0.05,9]
[10,"AMPOULE LED SPIRALE 35W","ECLAIRAGE","APM6",16,1,null,null,null,0,0,0,0,0,0,null,null,null,0,0,0,0,0,0,null,null,null,0,0,0,0,0,0,null,null,null,0,0,0,0,0,0,null,null,null,0,0,0,0,0,0,null,null,null,0,0,0,0,0,0,null,null,null,0,0,0,0,0,0,null,null,null,0,0,0,0,0,0,null,null,null,0,0,0,0,0,0,null,null,null,0,0,0,0,0,0,null,null,null,0,0,0,0,0,0,null,null,null,0,0,0,0,0,0,null,null,null,0,0,0,0,0,0,null,null,null,0,0,0,0,0,0,null,null,null,0,0,0,0,0,0,null,null,null,0,0,0,0,0,0,null,null,null,0,0,0,0,0,0,null,null,null,0,0,0,0,0,0,null,null,null,0,0,0,0,0,0,null,null,null,0,0,0,0,0,0,null,null,null,0,0,0,0,0,0,null,null,null,0,0,0,0,0,0,null,null,null,0,0,0,0,0,0,null,null,null,0,0,0,0,0,0,null,null,null,0,0,0,0,0,0,null,null,null,0,0,0,0,0,0,null,null,null,0,0,0,0,0,0,null,null,null,0,0,0,0,0,0,null,null,null,0,0,0,0,0,0,null,null,null,0,0,0,0,0,0,15,null,null,0,0,0,0,0,0,15,50,0,0,0,0,0,0,0,0,0,16,0,0,0,0,null,null,9,0.03,25]
[11,"AMPOULE LED SPIRALE 40W","ECLAIRAGE","APM7",40,38,null,null,null,0,0,0,0,0,0,null,null,null,0,0,0,0,0,0,null,null,null,0,0,0,0,0,0,null,null,null,0,0,0,0,0,0,null,null,null,0,0,0,0,0,0,null,null,null,0,0,0,0,0,0,null,null,null,0,0,0,0,0,0,null,null,null,0,0,0,0,0,0,null,null,null,0,0,0,0,0,0,null,null,null,0,0,0,0,0,0,null,null,null,0,0,0,0,0,0,null,null,null,0,0,0,0,0,0,null,null,null,0,0,0,0,0,0,null,null,null,0,0,0,0,0,0,null,null,null,0,0,0,0,0,0,null,null,null,0,0,0,0,0,0,null,null,null,0,0,0,0,0,0,null,null,null,0,0,0,0,0,0,null,null,null,0,0,0,0,0,0,null,null,null,0,0,0,0,0,0,null,null,null,0,0,0,0,0,0,null,null,null,0,0,0,0,0,0,null,null,null,0,0,0,0,0,0,null,null,null,0,0,0,0,0,0,null,null,null,0,0,0,0,0,0,null,null,null,0,0,0,0,0,0,null,null,null,0,0,0,0,0,0,null,null,null,0,0,0,0,0,0,null,null,null,0,0,0,0,0,0,null,null,null,0,0,0,0,0,0,2,null,null,0,0,0,0,0,0,2,9,0,0,0,0,0,0,0,0,0,40,0,0,0,0,null,null,6,0.01,23]
[12,"AMPOULE LED SPIRALE 45W","ECLAIRAGE","APM8",30,22,null,null,null,0,0,0,0,0,0,null,null,null,0,0,0,0,0,0,null,null,null,0,0,0,0,0,0,null,null,null,0,0,0,0,0,0,null,null,null,0,0,0,0,0,0,null,null,null,0,0,0,0,0,0,null,null,null,0,0,0,0,0,0,null,null,null,0,0,0,0,0,0,null,null,null,0,0,0,0,0,0,null,null,null,0,0,0,0,0,0,null,null,null,0,0,0,0,0,0,null,null,null,0,0,0,0,0,0,null,null,null,0,0,0,0,0,0,null,null,null,0,0,0,0,0,0,null,null,null,0,0,0,0,0,0,null,null,null,0,0,0,0,0,0,null,null,null,0,0,0,0,0,0,null,null,null,0,0,0,0,0,0,null,null,null,0,0,0,0,0,0,null,null,null,0,0,0,0,0,0,null,null,null,0,0,0,0,0,0,null,null,null,0,0,0,0,0,0,null,null,null,0,0,0,0,0,0,null,null,null,0,0,0,0,0,0,null,null,null,0,0,0,0,0,0,null,null,null,0,0,0,0,0,0,null,null,null,0,0,0,0,0,0,null,null,null,0,0,0,0,0,0,null,null,null,0,0,0,0,0,0,null,null,null,0,0,0,0,0,0,8,null,null,0,0,0,0,0,0,8,16,0,0,0,0,0,0,0,0,0,30,0,0,0,0,null,null,2.2999999999999998,0.02,25]
[13,"AMPOULE LED SPIRALE 50W","ECLAIRAGE","APM9",51,42,null,null,null,0,0,0,0,0,0,null,null,null,0,0,0,0,0,0,null,null,null,0,0,0,0,0,0,null,null,null,0,0,0,0,0,0,null,null,null,0,0,0,0,0,0,null,null,null,0,0,0,0,0,0,null,null,null,0,0,0,0,0,0,null,null,null,0,0,0,0,0,0,null,null,null,0,0,0,0,0,0,null,null,null,0,0,0,0,0,0,null,null,null,0,0,0,0,0,0,null,null,null,0,0,0,0,0,0,null,null,null,0,0,0,0,0,0,null,null,null,0,0,0,0,0,0,null,null,null,0,0,0,0,0,0,null,null,null,0,0,0,0,0,0,null,null,null,0,0,0,0,0,0,null,null,null,0,0,0,0,0,0,null,null,null,0,0,0,0,0,0,null,null,null,0,0,0,0,0,0,null,null,null,0,0,0,0,0,0,null,null,null,0,0,0,0,0,0,null,null,null,0,0,0,0,0,0,null,null,null,0,0,0,0,0,0,null,null,null,0,0,0,0,0,0,null,null,null,0,0,0,0,0,0,null,null,null,0,0,0,0,0,0,null,null,null,0,0,0,0,0,0,null,null,null,0,0,0,0,0,0,null,null,null,0,0,0,0,0,0,9,null,null,0,0,0,0,0,0,9,28,0,0,0,0,0,0,0,0,0,51,0,0,0,0,null,null,53,0.02,12]
[14,"AMPOULE LED SPIRALE 55W","ECLAIRAGE","APM10",23,15,null,null,null,0,0,0,0,0,0,null,null,null,0,0,0,0,0,0,null,null,null,0,0,0,0,0,0,null,null,null,0,0,0,0,0,0,null,null,null,0,0,0,0,0,0,null,null,null,0,0,0,0,0,0,null,null,null,0,0,0,0,0,0,null,null,null,0,0,0,0,0,0,null,null,null,0,0,0,0,0,0,null,null,null,0,0,0,0,0,0,null,null,null,0,0,0,0,0,0,null,null,null,0,0,0,0,0,0,null,null,null,0,0,0,0,0,0,null,null,null,0,0,0,0,0,0,null,null,null,0,0,0,0,0,0,null,null,null,0,0,0,0,0,0,null,null,null,0,0,0,0,0,0,null,null,null,0,0,0,0,0,0,null,null,null,0,0,0,0,0,0,null,null,null,0,0,0,0,0,0,null,null,null,0,0,0,0,0,0,null,null,null,0,0,0,0,0,0,null,null,null,0,0,0,0,0,0,null,null,null,0,0,0,0,0,0,null,null,null,0,0,0,0,0,0,null,null,null,0,0,0,0,0,0,null,null,null,0,0,0,0,0,0,null,null,null,0,0,0,0,0,0,null,null,null,0,0,0,0,0,0,null,null,null,0,0,0,0,0,0,8,null,null,0,0,0,0,0,0,8,29,0,0,0,0,0,0,0,0,0,23,0,0,0,0,null,null,2.9,0.03,10]
[15,"AMPOULE LED SPIRALE 60W","ECLAIRAGE","APM11",20,15,null,null,null,0,0,0,0,0,0,null,null,null,0,0,0,0,0,0,null,null,null,0,0,0,0,0,0,null,null,null,0,0,0,0,0,0,null,null,null,0,0,0,0,0,0,null,null,null,0,0,0,0,0,0,null,null,null,0,0,0,0,0,0,null,null,null,0,0,0,0,0,0,null,null,null,0,0,0,0,0,0,null,null,null,0,0,0,0,0,0,null,null,null,0,0,0,0,0,0,null,null,null,0,0,0,0,0,0,null,null,null,0,0,0,0,0,0,null,null,null,0,0,0,0,0,0,null,null,null,0,0,0,0,0,0,null,null,null,0,0,0,0,0,0,null,null,null,0,0,0,0,0,0,null,null,null,0,0,0,0,0,0,null,null,null,0,0,0,0,0,0,null,null,null,0,0,0,0,0,0,null,null,null,0,0,0,0,0,0,null,null,null,0,0,0,0,0,0,null,null,null,0,0,0,0,0,0,null,null,null,0,0,0,0,0,0,null,null,null,0,0,0,0,0,0,null,null,null,0,0,0,0,0,0,null,null,null,0,0,0,0,0,0,null,null,null,0,0,0,0,0,0,null,null,null,0,0,0,0,0,0,null,null,null,0,0,0,0,0,0,5,null,null,0,0,0,0,0,0,5,44,0,0,0,0,0,0,0,0,0,20,0,0,0,0,null,null,9.8000000000000007,0.04,12]
[16,"AMPOULE LED SPIRALE 65W","ECLAIRAGE","APM12",40,33,null,null,null,0,0,0,0,0,0,null,null,null,0,0,0,0,0,0,null,null,null,0,0,0,0,0,0,null,null,null,0,0,0,0,0,0,null,null,null,0,0,0,0,0,0,null,null,null,0,0,0,0,0,0,null,null,null,0,0,0,0,0,0,null,null,null,0,0,0,0,0,0,null,null,null,0,0,0,0,0,0,null,null,null,0,0,0,0,0,0,null,null,null,0,0,0,0,0,0,null,null,null,0,0,0,0,0,0,null,null,null,0,0,0,0,0,0,null,null,null,0,0,0,0,0,0,null,null,null,0,0,0,0,0,0,null,null,null,0,0,0,0,0,0,null,null,null,0,0,0,0,0,0,null,null,null,0,0,0,0,0,0,null,null,null,0,0,0,0,0,0,null,null,null,0,0,0,0,0,0,null,null,null,0,0,0,0,0,0,null,null,null,0,0,0,0,0,0,null,null,null,0,0,0,0,0,0,null,null,null,0,0,0,0,0,0,null,null,null,0,0,0,0,0,0,null,null,null,0,0,0,0,0,0,null,null,null,0,0,0,0,0,0,null,null,null,0,0,0,0,0,0,null,null,null,0,0,0,0,0,0,null,null,null,0,0,0,0,0,0,7,null,null,0,0,0,0,0,0,7,21,0,0,0,0,0,0,0,0,0,40,0,0,0,0,null,null,7.5,0.02,41]
[17,"AMPOULE LED SPIRALE 70W","ECLAIRAGE","APM13",25,16,null,null,null,0,0,0,0,0,0,null,null,null,0,0,0,0,0,0,null,null,null,0,0,0,0,0,0,null,null,null,0,0,0,0,0,0,null,null,null,0,0,0,0,0,0,null,null,null,0,0,0,0,0,0,null,null,null,0,0,0,0,0,0,null,null,null,0,0,0,0,0,0,null,null,null,0,0,0,0,0,0,null,null,null,0,0,0,0,0,0,null,null,null,0,0,0,0,0,0,null,null,null,0,0,0,0,0,0,null,null,null,0,0,0,0,0,0,null,null,null,0,0,0,0,0,0,null,null,null,0,0,0,0,0,0,null,null,null,0,0,0,0,0,0,null,null,null,0,0,0,0,0,0,null,null,null,0,0,0,0,0,0,null,null,null,0,0,0,0,0,0,null,null,null,0,0,0,0,0,0,null,null,null,0,0,0,0,0,0,null,null,null,0,0,0,0,0,0,null,null,null,0,0,0,0,0,0,null,null,null,0,0,0,0,0,0,null,null,null,0,0,0,0,0,0,null,null,null,0,0,0,0,0,0,null,null,null,0,0,0,0,0,0,null,null,null,0,0,0,0,0,0,null,null,null,0,0,0,0,0,0,null,null,null,0,0,0,0,0,0,9,null,null,0,0,0,0,0,0,9,17,0,0,0,0,0,0,0,0,0,25,0,0,0,0,null,null,8.9,0.05,7]
[18,"AMPOULE LED SPIRALE 75W","ECLAIRAGE","APM14",36,31,null,null,null,0,0,0,0,0,0,null,null,null,0,0,0,0,0,0,null,null,null,0,0,0,0,0,0,null,null,null,0,0,0,0,0,0,null,null,null,0,0,0,0,0,0,null,null,null,0,0,0,0,0,0,null,null,null,0,0,0,0,0,0,null,null,null,0,0,0,0,0,0,null,null,null,0,0,0,0,0,0,null,null,null,0,0,0,0,0,0,null,null,null,0,0,0,0,0,0,null,null,null,0,0,0,0,0,0,null,null,null,0,0,0,0,0,0,null,null,null,0,0,0,0,0,0,null,null,null,0,0,0,0,0,0,null,null,null,0,0,0,0,0,0,null,null,null,0,0,0,0,0,0,null,null,null,0,0,0,0,0,0,null,null,null,0,0,0,0,0,0,null,null,null,0,0,0,0,0,0,null,null,null,0,0,0,0,0,0,null,null,null,0,0,0,0,0,0,null,null,null,0,0,0,0,0,0,null,null,null,0,0,0,0,0,0,null,null,null,0,0,0,0,0,0,null,null,null,0,0,0,0,0,0,null,null,null,0,0,0,0,0,0,null,null,null,0,0,0,0,0,0,null,null,null,0,0,0,0,0,0,null,null,null,0,0,0,0,0,0,5,null,null,0,0,0,0,0,0,3,18,0,0,0,0,0,0,0,0,0,36,0,0,0,0,null,null,8.1,0.05,8]
[19,"AMPOULE LED SPIRALE 80W","ECLAIRAGE","APM15",45,45,null,null,null,0,0,0,0,0,0,null,null,null,0,0,0,0,0,0,null,null,null,0,0,0,0,0,0,null,null,null,0,0,0,0,0,0,null,null,null,0,0,0,0,0,0,null,null,null,0,0,0,0,0,0,null,null,null,0,0,0,0,0,0,null,null,null,0,0,0,0,0,0,null,null,null,0,0,0,0,0,0,null,null,null,0,0,0,0,0,0,null,null,null,0,0,0,0,0,0,null,null,null,0,0,0,0,0,0,null,null,null,0,0,0,0,0,0,null,null,null,0,0,0,0,0,0,null,null,null,0,0,0,0,0,0,null,null,null,0,0,0,0,0,0,null,null,null,0,0,0,0,0,0,null,null,null,0,0,0,0,0,0,null,null,null,0,0,0,0,0,0,null,null,null,0,0,0,0,0,0,null,null,null,0,0,0,0,0,0,null,null,null,0,0,0,0,0,0,null,null,null,0,0,0,0,0,0,null,null,null,0,0,0,0,0,0,null,null,null,0,0,0,0,0,0,null,null,null,0,0,0,0,0,0,null,null,null,0,0,0,0,0,0,null,null,null,0,0,0,0,0,0,null,null,null,0,0,0,0,0,0,null,null,null,0,0,0,0,0,0,null,null,null,0,0,0,0,0,0,7,28,0,0,0,0,0,0,0,0,0,45,0,0,0,0,null,null,8.1999999999999993,0.02,21]
[20,"AMPOULE LED SPIRALE 85W","ECLAIRAGE","APM16",46,46,null,null,null,0,0,0,0,0,0,null,null,null,0,0,0,0,0,0,null,null,null,0,0,0,0,0,0,null,null,null,0,0,0,0,0,0,null,null,null,0,0,0,0,0,0,null,null,null,0,0,0,0,0,0,null,null,null,0,0,0,0,0,0,null,null,null,0,0,0,0,0,0,null,null,null,0,0,0,0,0,0,null,null,null,0,0,0,0,0,0,null,null,null,0,0,0,0,0,0,null,null,null,0,0,0,0,0,0,null,null,null,0,0,0,0,0,0,null,null,null,0,0,0,0,0,0,null,null,null,0,0,0,0,0,0,null,null,null,0,0,0,0,0,0,null,null,null,0,0,0,0,0,0,null,null,null,0,0,0,0,0,0,null,null,null,0,0,0,0,0,0,null,null,null,0,0,0,0,0,0,null,null,null,0,0,0,0,0,0,null,null,null,0,0,0,0,0,0,null,null,null,0,0,0,0,0,0,null,null,null,0,0,0,0,0,0,null,null,null,0,0,0,0,0,0,null,null,null,0,0,0,0,0,0,null,null,null,0,0,0,0,0,0,null,null,null,0,0,0,0,0,0,null,null,null,0,0,0,0,0,0,null,null,null,0,0,0,0,0,0,null,null,null,0,0,0,0,0,0,5,15,0,0,0,0,0,0,0,0,0,46,0,0,0,0,null,null,7.9,0.03,23]